fUSD/lending_fUSD_20240415
["ID","MTS","AMOUNT","RATE_DAILY","PERIOD"]
[322637005,1713148017573,-157.041411,0.00020999,2]
[322637006,1713148017595,-157.041411,0.00020999,2]
[322637007,1713148017618,-3217210.63762378,0.00021,2]
[322637020,1713148232497,-155.0,0.00020894,2]
[322637021,1713148232508,-505.0,0.00020895,2]
[322637022,1713148232627,-433.66532984,0.00020895,2]
[322637023,1713148232638,-60.91631141,0.00020895,2]
[322637024,1713148232647,-1238.50453309,0.00020896,2]
[322637025,1713148232659,-3339.76603272,0.00020896,2]
[322637026,1713148232668,-150.0,0.00020899,2]
[322637027,1713148232677,-235.75975263,0.000209,2]
[322637028,1713148232687,-185.91628154,0.000209,2]
[322637029,1713148232777,-190.63326362,0.000209,2]
[322637030,1713148232787,-653.47898157,0.000209,3]
[322637031,1713148232797,-593.75582218,0.000209,2]
[322637032,1713148232807,-1805.36940998,0.000209,2]
[322637036,1713148237959,-8597.10416574,0.000209,2]
[322637037,1713148237970,-15936.42775799,0.000209,2]
[322637038,1713148238140,-3157.74632268,0.000209,2]
[322637039,1713148238152,-3790.69669193,0.000209,2]
[322637040,1713148238163,-150.01,0.00020999,2]
[322637041,1713148238174,-157.041411,0.00020999,2]
[322637042,1713148238183,-157.041411,0.00020999,2]
[322637043,1713148238194,-157.041411,0.00020999,2]
[322637044,1713148238203,-157.041411,0.00020999,2]
[322637045,1713148238214,-157.041411,0.00020999,2]
[322637046,1713148238224,-157.041411,0.00020999,2]
[322637047,1713148238234,-157.041411,0.00020999,2]
[322637048,1713148238244,-157.041411,0.00020999,2]
[322637049,1713148238254,-157.041411,0.00020999,2]
[322637050,1713148238265,-157.041411,0.00020999,2]
[322637051,1713148238274,-157.041411,0.00020999,2]
[322637052,1713148238284,-157.041411,0.00020999,2]
[322637053,1713148238294,-157.041411,0.00020999,2]
[322637054,1713148238303,-157.041411,0.00020999,2]
[322637055,1713148238312,-157.041411,0.00020999,2]
[322637056,1713148238322,-157.041411,0.00020999,2]
[322637058,1713148238332,-157.041411,0.00020999,2]
[322637060,1713148238341,-157.041411,0.00020999,2]
[322637062,1713148238350,-157.041411,0.00020999,2]
[322637064,1713148238360,-549.79247871,0.00020999,2]
[322637066,1713148238370,-435.07646771,0.00020999,2]
[322637068,1713148238380,-6885901.51377879,0.00021,2]
[322637070,1713148238389,-1430.30975011,0.00021,2]
[322637072,1713148238398,-108390.8374027,0.00021,2]
[322637074,1713148238407,-715.48314253,0.00021,2]
[322637076,1713148238417,-543.84,0.00021,2]
[322637078,1713148238427,-502.24,0.00021,2]
[322637080,1713148238438,-1000.0,0.00021,2]
[322637082,1713148238448,-200.0,0.00021,2]
[322637084,1713148238458,-151.507,0.00021,2]
[322637086,1713148238469,-150.0,0.00021,2]
[322637088,1713148238479,-152.0,0.00021,2]
[322637090,1713148238489,-150.259,0.00021,2]
[322637092,1713148238498,-155.351,0.00021,2]
[322637094,1713148238508,-266.645,0.00021,2]
[322637096,1713148238517,-150.0,0.00021,2]
[322637098,1713148238528,-150.0,0.00021,2]
[322637100,1713148238538,-263.855,0.00021,2]
[322637102,1713148238547,-253.885,0.00021,2]
[322637104,1713148238557,-1157518.14901593,0.00021,2]
[322637256,1713148240087,-19846.88460197,0.00021,2]
[322637259,1713148240101,-433.53595303,0.00021,2]
[322637339,1713148240876,-3256147.40151373,0.00021,2]
[322637602,1713148349307,547.27238439,0.000168,2]
[322637603,1713148353821,9042.66,0.0002831,120]
[322637604,1713149099511,171.13012598,0.00018199,2]
[322637605,1713149099534,150.0,0.00018199,2]
[322637606,1713149099554,150.0,0.00018199,2]
[322637607,1713149099575,49.65190911,0.00018199,2]
[322637608,1713149102055,100.34809089,0.00018199,2]
[322637609,1713149102076,150.0,0.00018199,2]
[322637610,1713149102100,150.0,0.00018199,2]
[322637611,1713149102121,120.4339442,0.00018199,2]
[322637612,1713149104607,29.5660558,0.00018199,2]
[322637613,1713149174052,357.36162381,0.00018198,2]
[322637628,1713149282029,150.0,0.00018198,2]
[322637632,1713149432210,-520.78203509,0.00018201,2]
[322637633,1713149432219,-520.78203509,0.00018201,2]
[322637634,1713149432229,-520.78203509,0.00018201,2]
[322637635,1713149432238,-187.65389473,0.00018201,2]
[322637636,1713149432251,-333.12814036,0.00018201,2]
[322637637,1713149432261,-520.78203509,0.00018201,2]
[322637638,1713149432271,-364.09,0.00018202,2]
[322637639,1713149432281,-537.3952011,0.00019655,2]
[322637640,1713149432291,-200.0,0.00019656,2]
[322637641,1713149432301,-200.0,0.00019666,2]
[322637642,1713149432310,-500.0,0.0001967,2]
[322637643,1713149432320,-175.65,0.00019675,2]
[322637644,1713149432329,-3327.56,0.00019678,2]
[322637645,1713149432341,-3340.92,0.00019684,2]
[322637646,1713149432353,-10449.71,0.00019694,2]
[322637647,1713149432362,-632.37,0.00019814,2]
[322637648,1713149432371,-150.0,0.00019932,2]
[322637649,1713149432382,-2358.31,0.0002,2]
[322637650,1713149432391,-155.0,0.00020067,2]
[322637651,1713149432400,-250.0,0.00020075,2]
[322637652,1713149432409,-800.0,0.00020177,2]
[322637653,1713149432419,-150.99,0.00020177,2]
[322637654,1713149432428,-364.09,0.00020466,2]
[322637655,1713149432437,-150.0,0.00020478,2]
[322637656,1713149432446,-349.74,0.00020678,2]
[322637657,1713149432455,-758.12866,0.0002079,2]
[322637658,1713149432465,-1223.60301073,0.000208,2]
[322637660,1713149432474,-1223.60301072,0.00020811,2]
[322637662,1713149432483,-1223.60301072,0.00020822,2]
[322637664,1713149432492,-1000.0,0.00020832,2]
[322637666,1713149432501,-1223.60301072,0.00020833,2]
[322637668,1713149432511,-1223.60301072,0.00020844,2]
[322637670,1713149432520,-1223.60301072,0.00020856,2]
[322637672,1713149432530,-1223.60301072,0.00020867,2]
[322637674,1713149432545,-1223.60301072,0.00020878,2]
[322637676,1713149432555,-1223.60301072,0.00020889,2]
[322637678,1713149432566,-1952.3631,0.000209,2]
[322637680,1713149432575,-418.16,0.000209,2]
[322637682,1713149432585,-150.9,0.000209,2]
[322637684,1713149432597,-302.9,0.000209,2]
[322637686,1713149432608,-162.36,0.000209,2]
[322637688,1713149432618,-300.0,0.000209,2]
[322637690,1713149432629,-300.0,0.000209,2]
[322637692,1713149432639,-2353.59257947,0.000209,2]
[322637695,1713149432694,-907.63867013,0.000209,2]
[322637696,1713149432730,-24639.31362719,0.000209,2]
[322637894,1713149440149,-5074.49492411,0.000209,2]
[322637899,1713149440193,-30059.86109842,0.000209,2]
[322637901,1713149440204,-375.58603771,0.000209,2]
[322637904,1713149440221,-3274.96392716,0.000209,2]
[322637906,1713149440233,-9013.25403581,0.000209,2]
[322637908,1713149440242,-151.67314636,0.000209,2]
[322637910,1713149440251,-3043.71947281,0.000209,2]
[322637912,1713149440260,-6506.50496987,0.000209,2]
[322637928,1713149440405,-364.0,0.000209,2]
[322637930,1713149440417,-31541.38276595,0.000209,2]
[322637932,1713149440426,-707.69888842,0.000209,3]
[322637934,1713149440436,-1223.60301072,0.000209,2]
[322637936,1713149440445,-4000.0,0.000209,2]
[322637938,1713149440455,-1488.46303538,0.00020979,2]
[322637940,1713149440464,-1131.27273616,0.00020998,2]
[322637942,1713149440474,-793072.734707,0.00020998,2]
[322637944,1713149440483,-501.91702132,0.00020998,2]
[322637946,1713149440492,-155.28472201,0.00020998,2]
[322637948,1713149440502,-301.32189196,0.00020998,2]
[322637950,1713149440512,-1113.49753969,0.00020998,2]
[322637952,1713149440521,-1341.66114702,0.00020998,2]
[322637954,1713149440530,-150.01,0.00020999,2]
[322637956,1713149440542,-157.041411,0.00020999,2]
[322637958,1713149440551,-157.041411,0.00020999,2]
[322637960,1713149440561,-157.041411,0.00020999,2]
[322637962,1713149440570,-157.041411,0.00020999,2]
[322637964,1713149440580,-157.041411,0.00020999,2]
[322637966,1713149440590,-6236.09736954,0.00020999,2]
[322637968,1713149440600,-157.041411,0.00020999,2]
[322637970,1713149440611,-157.041411,0.00020999,2]
[322637972,1713149440621,-157.041411,0.00020999,2]
[322637974,1713149440632,-157.041411,0.00020999,2]
[322637976,1713149440643,-157.041411,0.00020999,2]
[322637978,1713149440654,-157.041411,0.00020999,2]
[322637981,1713149440666,-157.041411,0.00020999,2]
[322637983,1713149440677,-157.041411,0.00020999,2]
[322637985,1713149440689,-157.041411,0.00020999,2]
[322637987,1713149440699,-157.041411,0.00020999,2]
[322637989,1713149440710,-157.041411,0.00020999,2]
[322637991,1713149440721,-157.041411,0.00020999,2]
[322637993,1713149440731,-157.041411,0.00020999,2]
[322637995,1713149440740,-157.041411,0.00020999,2]
[322637996,1713149440750,-157.041411,0.00020999,2]
[322637999,1713149440760,-157.041411,0.00020999,2]
[322638001,1713149440770,-157.041411,0.00020999,2]
[322638002,1713149440780,-157.041411,0.00020999,2]
[322638004,1713149440792,-157.041411,0.00020999,2]
[322638006,1713149440806,-157.041411,0.00020999,2]
[322638008,1713149440816,-157.041411,0.00020999,2]
[322638011,1713149440826,-157.041411,0.00020999,2]
[322638013,1713149440835,-157.041411,0.00020999,2]
[322638015,1713149440846,-157.041411,0.00020999,2]
[322638016,1713149440856,-157.041411,0.00020999,2]
[322638018,1713149440865,-157.041411,0.00020999,2]
[322638021,1713149440875,-157.041411,0.00020999,2]
[322638022,1713149440885,-157.041411,0.00020999,2]
[322638024,1713149440894,-157.041411,0.00020999,2]
[322638027,1713149440903,-157.041411,0.00020999,2]
[322638029,1713149440913,-157.041411,0.00020999,2]
[322638031,1713149440922,-157.041411,0.00020999,2]
[322638032,1713149440931,-157.041411,0.00020999,2]
[322638035,1713149440941,-157.041411,0.00020999,2]
[322638037,1713149440951,-157.041411,0.00020999,2]
[322638039,1713149440960,-157.041411,0.00020999,2]
[322638041,1713149440969,-157.041411,0.00020999,2]
[322638043,1713149440979,-157.041411,0.00020999,2]
[322638045,1713149440988,-157.041411,0.00020999,2]
[322638047,1713149440997,-157.041411,0.00020999,2]
[322638049,1713149441006,-157.041411,0.00020999,2]
[322638051,1713149441015,-157.041411,0.00020999,2]
[322638053,1713149441024,-157.041411,0.00020999,2]
[322638054,1713149441034,-157.041411,0.00020999,2]
[322638057,1713149441049,-157.041411,0.00020999,2]
[322638059,1713149441058,-157.041411,0.00020999,2]
[322638061,1713149441068,-157.041411,0.00020999,2]
[322638063,1713149441077,-435.07646771,0.00020999,2]
[322638065,1713149441086,-384.8547351,0.00020999,2]
[322638067,1713149441096,-7311164.87481625,0.00021,2]
[322638289,1713149443545,-936.91515763,0.000209,2]
[322638290,1713149443629,-3063.08484237,0.000209,2]
[322638291,1713149443639,-43319.47769158,0.00021,2]
[322638292,1713149443694,-4335.08078458,0.00021,2]
[322638293,1713149443752,-150.01,0.00020999,2]
[322638294,1713149443761,-383.89740593,0.00021,2]
[322638296,1713149443788,-65377.14039998,0.00021,2]
[322638302,1713149446126,-1396.40779167,0.00021,2]
[322638303,1713149446138,-322.98599998,0.00021,2]
[322638304,1713149446303,-350.0122491,0.00021,2]
[322638305,1713149446333,-622976.51371088,0.00021,2]
[322638306,1713149446524,-265.85520743,0.00021,2]
[322638319,1713150354544,30.03357729,0.00017393,2]
[322638320,1713150354568,414.93642271,0.00017393,2]
[322638352,1713150613823,210.0000217,0.00016,12]
[322638366,1713150632308,-637.45328173,0.0001829,2]
[322638367,1713150632323,-75.15599244,0.00018291,2]
[322638368,1713150632487,-620.0,0.00018291,2]
[322638448,1713150640826,-637.45328173,0.0001829,2]
[322638450,1713150640835,-2467.41673958,0.00018291,2]
[322638452,1713150640844,-520.78203509,0.00018292,2]
[322638454,1713150640854,-520.78203509,0.00018292,2]
[322638456,1713150640863,-520.78203509,0.00018292,2]
[322638458,1713150640871,-520.78203509,0.00018292,2]
[322638460,1713150640880,-575.56027939,0.00018294,2]
[322638462,1713150640889,-10881.0,0.000183,2]
[322638464,1713150640898,-942.0,0.0001915,2]
[322638466,1713150640907,-507.0,0.0001915,2]
[322638468,1713150640916,-23890.0,0.00019242,2]
[322638470,1713150640925,-160.0,0.0001928,2]
[322638472,1713150640934,-703.2,0.00019284,2]
[322638474,1713150640947,-200.0,0.00019307,2]
[322638476,1713150640956,-500.0,0.00019311,2]
[322638478,1713150640964,-260.41,0.00019339,2]
[322638480,1713150640974,-840.0,0.00019429,2]
[322638482,1713150640982,-177.32,0.00019464,2]
[322638484,1713150640992,-444.97,0.00019657,2]
[322638486,1713150641001,-177.32,0.00019802,2]
[322638488,1713150641010,-667.02,0.00020065,2]
[322638490,1713150641020,-667.02,0.0002007,2]
[322638492,1713150641029,-499.99,0.0002007,2]
[322638494,1713150641038,-667.02,0.00020076,2]
[322638496,1713150641047,-667.02,0.00020081,2]
[322638498,1713150641056,-667.02,0.00020086,2]
[322638500,1713150641065,-667.02,0.00020092,2]
[322638502,1713150641074,-667.02,0.00020097,2]
[322638504,1713150641083,-667.02,0.00020102,2]
[322638506,1713150641092,-667.02,0.00020107,2]
[322638508,1713150641102,-667.02,0.00020113,2]
[322638510,1713150641111,-667.02,0.00020118,2]
[322638512,1713150641120,-667.02,0.00020123,2]
[322638514,1713150641129,-667.02,0.00020129,2]
[322638515,1713150641138,-667.02,0.00020134,2]
[322638517,1713150641147,-667.02,0.00020139,2]
[322638519,1713150641157,-177.32,0.0002014,2]
[322638521,1713150641168,-667.02,0.00020144,2]
[322638524,1713150641178,-667.02,0.0002015,2]
[322638525,1713150641189,-667.02,0.00020155,2]
[322638527,1713150641198,-667.02,0.0002016,2]
[322638530,1713150641207,-200.0,0.00020163,2]
[322638532,1713150641216,-667.02,0.00020166,2]
[322638534,1713150641225,-942.0,0.00020246,2]
[322638536,1713150641235,-507.0,0.00020246,2]
[322638537,1713150641244,-177.32,0.00020478,2]
[322638538,1713150641253,-150.0,0.000205,2]
[322638539,1713150641262,-8221.49507707,0.00020511,2]
[322638540,1713150641271,-2221.56,0.00020548,2]
[322638541,1713150641280,-5721.0,0.00020639,2]
[322638542,1713150641288,-5885.0,0.00020639,2]
[322638543,1713150641297,-1316.0,0.00020639,2]
[322638544,1713150641306,-37635.0,0.00020639,2]
[322638545,1713150641314,-1027.792,0.00020639,2]
[322638546,1713150641323,-160.33,0.00020654,2]
[322638547,1713150641332,-150.0,0.00020679,2]
[322638548,1713150641341,-150.0,0.00020769,2]
[322638549,1713150641349,-631.77388,0.0002079,2]
[322638550,1713150641358,-500.0,0.00020831,2]
[322638551,1713150641367,-200.0,0.00020832,2]
[322638553,1713150641376,-1000.0,0.00020832,2]
[322638555,1713150641385,-202.783279,0.00020832,2]
[322638557,1713150641394,-502.976456,0.00020832,2]
[322638559,1713150641404,-500.0,0.00020832,2]
[322638561,1713150641413,-1000.0,0.00020893,2]
[322638563,1713150641422,-6660.6332,0.000209,2]
[322638565,1713150641431,-988.59364114,0.000209,2]
[322638567,1713150641442,-1254.0,0.000209,2]
[322638569,1713150641450,-34037.23999267,0.0002098,2]
[322638571,1713150641459,-6004.18559901,0.00020997,2]
[322638573,1713150641467,-6236.09736954,0.00020998,2]
[322638575,1713150641477,-155.28472201,0.00020998,2]
[322638577,1713150641486,-301.32189196,0.00020998,2]
[322638579,1713150641495,-501.91702132,0.00020998,2]
[322638581,1713150641504,-184.63290018,0.00020998,2]
[322638583,1713150641513,-1131.27273616,0.00020998,2]
[322638585,1713150641522,-1113.49753969,0.00020998,2]
[322638587,1713150641531,-150.01,0.00020999,2]
[322638589,1713150641540,-280.01831573,0.00020999,2]
[322638591,1713150641549,-157.041411,0.00020999,2]
[322638593,1713150641558,-157.041411,0.00020999,2]
[322638595,1713150641567,-157.041411,0.00020999,2]
[322638597,1713150641577,-157.041411,0.00020999,2]
[322638599,1713150641586,-157.041411,0.00020999,2]
[322638601,1713150641594,-157.041411,0.00020999,2]
[322638603,1713150641603,-157.041411,0.00020999,2]
[322638605,1713150641612,-157.041411,0.00020999,2]
[322638607,1713150641621,-157.041411,0.00020999,2]
[322638609,1713150641630,-157.041411,0.00020999,2]
[322638611,1713150641639,-157.041411,0.00020999,2]
[322638613,1713150641648,-157.041411,0.00020999,2]
[322638615,1713150641657,-157.041411,0.00020999,2]
[322638617,1713150641667,-157.041411,0.00020999,2]
[322638619,1713150641677,-157.041411,0.00020999,2]
[322638621,1713150641688,-157.041411,0.00020999,2]
[322638623,1713150641698,-157.041411,0.00020999,2]
[322638625,1713150641709,-157.041411,0.00020999,2]
[322638627,1713150641718,-157.041411,0.00020999,2]
[322638629,1713150641730,-157.041411,0.00020999,2]
[322638630,1713150641740,-157.041411,0.00020999,2]
[322638633,1713150641751,-157.041411,0.00020999,2]
[322638635,1713150641761,-157.041411,0.00020999,2]
[322638636,1713150641772,-157.041411,0.00020999,2]
[322638639,1713150641782,-157.041411,0.00020999,2]
[322638641,1713150641791,-157.041411,0.00020999,2]
[322638643,1713150641801,-157.041411,0.00020999,2]
[322638645,1713150641810,-157.041411,0.00020999,2]
[322638647,1713150641820,-157.041411,0.00020999,2]
[322638649,1713150641829,-157.041411,0.00020999,2]
[322638651,1713150641839,-157.041411,0.00020999,2]
[322638653,1713150641849,-157.041411,0.00020999,2]
[322638655,1713150641858,-157.041411,0.00020999,2]
[322638657,1713150641868,-157.041411,0.00020999,2]
[322638659,1713150641877,-157.041411,0.00020999,2]
[322638661,1713150641888,-157.041411,0.00020999,2]
[322638663,1713150641898,-157.041411,0.00020999,2]
[322638665,1713150641910,-157.041411,0.00020999,2]
[322638667,1713150641920,-157.041411,0.00020999,2]
[322638669,1713150641930,-157.041411,0.00020999,2]
[322638671,1713150641941,-157.041411,0.00020999,2]
[322638673,1713150641951,-157.041411,0.00020999,2]
[322638675,1713150641961,-157.041411,0.00020999,2]
[322638677,1713150641970,-157.041411,0.00020999,2]
[322638679,1713150641980,-157.041411,0.00020999,2]
[322638681,1713150641990,-157.041411,0.00020999,2]
[322638683,1713150641999,-157.041411,0.00020999,2]
[322638685,1713150642009,-157.041411,0.00020999,2]
[322638687,1713150642019,-157.041411,0.00020999,2]
[322638689,1713150642029,-157.041411,0.00020999,2]
[322638691,1713150642039,-157.041411,0.00020999,2]
[322638693,1713150642048,-157.041411,0.00020999,2]
[322638695,1713150642058,-157.041411,0.00020999,2]
[322638697,1713150642067,-157.041411,0.00020999,2]
[322638699,1713150642076,-157.041411,0.00020999,2]
[322638701,1713150642085,-157.041411,0.00020999,2]
[322638703,1713150642094,-157.041411,0.00020999,2]
[322638705,1713150642104,-157.041411,0.00020999,2]
[322638707,1713150642114,-157.041411,0.00020999,2]
[322638709,1713150642123,-157.041411,0.00020999,2]
[322638711,1713150642134,-384.8547351,0.00020999,2]
[322638713,1713150642143,-435.07646771,0.00020999,2]
[322638715,1713150642154,-500.0,0.00020999,2]
[322638717,1713150642164,-500.0,0.00020999,2]
[322638719,1713150642173,-500.0,0.00020999,2]
[322638721,1713150642183,-500.0,0.00020999,2]
[322638723,1713150642194,-500.0,0.00020999,2]
[322638724,1713150642203,-370.42466129,0.00020999,2]
[322638726,1713150642213,-1310.61190736,0.00021,2]
[322638742,1713150642344,-7331082.02181876,0.00021,2]
[322638857,1713150643362,-298.88314328,0.00021,2]
[322639031,1713150645886,-1067.81353758,0.00021,2]
[322639032,1713150645898,-455.24917089,0.00021,2]
[322639033,1713150646099,-4363.82219978,0.00021,2]
[322639035,1713150647698,-360.08234564,0.00020999,2]
[322639036,1713150647710,-1909.74,0.00020999,2]
[322639037,1713150647724,-3431.15037639,0.00020999,2]
[322639038,1713150647827,-959.66047797,0.00020999,2]
[322639039,1713150647866,-326200.70079375,0.00020999,2]
[322639040,1713150835277,455.64,0.00017914,2]
[322639042,1713151174875,4997.0,0.00015,14]
[322639044,1713151324043,432.85,0.0001766,2]
[322639075,1713151831851,-166.96379572,0.00019078,2]
[322639076,1713151831860,-226.74049608,0.00019178,2]
[322639077,1713151831896,-586.85226721,0.00019178,2]
[322639078,1713151831993,-60.40723671,0.00019178,2]
[322639079,1713151832002,-507.0,0.00019178,2]
[322639080,1713151832011,-237.04072438,0.000194,2]
[322639081,1713151832021,-16322.45,0.00019572,2]
[322639082,1713151832032,-184.91,0.00019605,2]
[322639083,1713151832043,-1437.29,0.00019605,2]
[322639084,1713151832054,-1098.89,0.00019637,2]
[322639085,1713151832063,-166.96379571,0.00019649,2]
[322639086,1713151832074,-1000.0,0.00019659,2]
[322639087,1713151832086,-500.0,0.00019694,2]
[322639088,1713151832103,-208.82,0.0001972,2]
[322639089,1713151832113,-1890.0,0.00019726,2]
[322639090,1713151832122,-432.85,0.00019924,2]
[322639091,1713151832132,-3185.07778658,0.00019948,2]
[322639092,1713151832143,-300.0,0.0002,7]
[322639093,1713151832153,-600.0,0.000201,7]
[322639094,1713151832163,-1000.0,0.000202,7]
[322639095,1713151832173,-166.96379571,0.00020219,2]
[322639096,1713151832182,-874.0,0.00020274,2]
[322639097,1713151832191,-507.0,0.00020274,2]
[322639098,1713151832201,-1300.0,0.000203,7]
[322639099,1713151832210,-1700.0,0.000204,7]
[322639100,1713151832221,-300.0,0.000205,7]
[322639101,1713151832231,-427.53,0.00020575,2]
[322639102,1713151832241,-166.55,0.00020575,2]
[322639103,1713151832250,-153.13,0.00020575,2]
[322639104,1713151832261,-153.02,0.00020575,2]
[322639105,1713151832271,-300.0,0.000206,7]
[322639106,1713151832280,-300.0,0.000207,7]
[322639107,1713151832290,-208.82,0.00020747,2]
[322639108,1713151832300,-1291.37521511,0.0002079,2]
[322639109,1713151832309,-329.00785431,0.0002079,2]
[322639110,1713151832319,-1010.56872651,0.0002079,2]
[322639111,1713151832329,-166.96379571,0.0002079,2]
[322639112,1713151832339,-300.0,0.000208,7]
[322639113,1713151832354,-1291.37521511,0.00020802,2]
[322639114,1713151832363,-1010.56872649,0.00020802,2]
[322639115,1713151832373,-1291.37521511,0.00020814,2]
[322639116,1713151832382,-1010.56872649,0.00020814,2]
[322639117,1713151832392,-1291.37521511,0.00020827,2]
[322639118,1713151832402,-1010.56872649,0.00020827,2]
[322639119,1713151832412,-486.637,0.00020832,2]
[322639120,1713151832421,-500.0,0.00020832,2]
[322639121,1713151832431,-1291.37521511,0.00020839,2]
[322639122,1713151832440,-1010.56872649,0.00020839,2]
[322639123,1713151832450,-1291.37521511,0.00020851,2]
[322639124,1713151832459,-1010.56872649,0.00020851,2]
[322639125,1713151832469,-1291.37521511,0.00020863,2]
[322639126,1713151832479,-1010.56872649,0.00020863,2]
[322639127,1713151832488,-831.97235816,0.00020875,2]
[322639128,1713151832498,-1291.37521511,0.00020876,2]
[322639129,1713151832507,-1010.56872649,0.00020876,2]
[322639130,1713151832517,-802.41,0.0002088,3]
[322639131,1713151832526,-161.97,0.0002088,2]
[322639132,1713151832535,-157.041412,0.00020885,2]
[322639133,1713151832545,-157.041412,0.00020885,2]
[322639134,1713151832555,-157.041412,0.00020885,2]
[322639135,1713151832564,-157.041412,0.00020885,2]
[322639136,1713151832574,-157.041412,0.00020885,2]
[322639137,1713151832584,-157.041412,0.00020886,2]
[322639138,1713151832595,-157.041412,0.00020886,2]
[322639139,1713151832604,-157.041412,0.00020886,2]
[322639140,1713151832613,-157.041412,0.00020886,2]
[322639141,1713151832623,-157.041412,0.00020886,2]
[322639142,1713151832633,-157.041412,0.00020886,2]
[322639143,1713151832643,-157.041412,0.00020886,2]
[322639144,1713151832652,-157.041412,0.00020887,2]
[322639145,1713151832662,-157.041412,0.00020887,2]
[322639146,1713151832671,-157.041412,0.00020887,2]
[322639147,1713151832681,-157.041412,0.00020887,2]
[322639148,1713151832690,-157.041412,0.00020887,2]
[322639149,1713151832699,-157.041412,0.00020887,2]
[322639150,1713151832709,-157.041412,0.00020887,2]
[322639151,1713151832718,-157.041412,0.00020887,2]
[322639152,1713151832727,-1291.37521511,0.00020888,2]
[322639153,1713151832736,-1010.56872649,0.00020888,2]
[322639154,1713151832746,-155.31054776,0.00020888,2]
[322639155,1713151832755,-11926.22278854,0.00020889,2]
[322639156,1713151832765,-3375.97194973,0.0002089,2]
[322639157,1713151832778,-71282.94818767,0.0002089,2]
[322639158,1713151832789,-261.62382088,0.0002089,2]
[322639159,1713151832800,-737.05250174,0.0002089,2]
[322639160,1713151832836,-4937.08815957,0.0002089,2]
[322639161,1713151832906,-275.02123254,0.0002089,2]
[322639162,1713151832949,-1725.65826657,0.0002089,2]
[322639163,1713151832960,-364.7,0.0002089,2]
[322639164,1713151832972,-316.42724549,0.0002089,2]
[322639180,1713151837645,-1476.94559999,0.0002089,2]
[322639181,1713151837657,-1656.102,0.0002089,2]
[322639182,1713151837776,-354394.93580882,0.0002089,2]
[322639183,1713151837786,-161.97,0.0002089,2]
[322639184,1713151837795,-156.61465412,0.0002089,2]
[322639185,1713151837805,-1004.50351034,0.00020898,2]
[322639186,1713151837814,-23943.71309022,0.000209,2]
[322639187,1713151837824,-989526.07400344,0.000209,3]
[322639188,1713151837833,-187.58531912,0.000209,2]
[322639189,1713151837842,-1291.37521511,0.000209,2]
[322639190,1713151837856,-849.0,0.000209,7]
[322639192,1713151837865,-1010.56872649,0.000209,2]
[322639194,1713151837875,-283.02,0.00020959,2]
[322639196,1713151837884,-161.97,0.0002099,2]
[322639198,1713151837893,-156.61465412,0.0002099,2]
[322639200,1713151837902,-156.61465412,0.0002099,2]
[322639202,1713151837912,-6214.23309789,0.00020997,2]
[322639204,1713151837921,-64178.16892393,0.00020998,2]
[322639207,1713151837930,-150.01,0.00020999,2]
[322639209,1713151837939,-251.0676617,0.00020999,2]
[322639210,1713151837948,-157.041412,0.00020999,2]
[322639214,1713151837958,-157.041412,0.00020999,2]
[322639217,1713151837967,-157.041412,0.00020999,2]
[322639220,1713151837975,-157.041412,0.00020999,2]
[322639223,1713151837984,-157.041412,0.00020999,2]
[322639226,1713151837993,-157.041412,0.00020999,2]
[322639227,1713151838003,-157.041412,0.00020999,2]
[322639229,1713151838012,-156.91412643,0.00021,2]
[322639232,1713151838021,-8014891.22529581,0.00021,2]
[322639237,1713151838063,-336.63064455,0.00021,2]